bitfinex-derivatives/quotes_SOLF0:USTF0_20241230
["timestamp","ask_amount","ask_price","bid_price","bid_amount"]
[1735587981098,3.18,195.87,195.79,2.9851]
[1735587981294,3.18,195.86,195.84,2.556]
[1735587981598,3.18,195.86,195.79,2.9851]
[1735587982496,3.18,195.86,195.83,2.5561]
[1735587982795,3.18,195.86,195.79,2.9851]
[1735587982993,3.18,195.86,195.84,2.5561]
[1735587983196,3.18,195.86,195.79,1.5344]
[1735587983698,3.18,195.86,195.83,2.5561]
[1735587983891,12.54372062,195.91,195.79,1.5344]
[1735587984190,3.18,195.93,195.83,12.54372062]
[1735587984401,3.18,195.94,195.86,12.54372062]
[1735587984586,56.1941,195.99,195.86,12.54372062]
[1735587984790,3.18,195.98,195.87,3.0479]
[1735587985598,3.18,195.97,195.87,3.0479]
[1735587986285,15.72372062,195.97,195.89,2.5554]
[1735587986695,2.5546,195.96,195.88,2.5556]
[1735587987393,15.72372062,195.97,195.9,2.5553]
[1735587987587,3.18,195.97,195.9,2.5553]
[1735587987791,1.4708,195.99,195.87,3.0479]
[1735587987995,3.18,195.98,195.87,15.59162062]
[1735587988495,3.18,195.98,195.9,12.54372062]
[1735587988697,3.18,195.98,195.95,2.5546]
[1735587990391,3.18,195.98,195.9,12.54372062]
[1735587991294,3.18,195.98,195.96,2.5545]
[1735587991498,1.4708,196.05,195.93,12.54372062]
[1735587991893,3.18,196.04,195.94,1.4836]
[1735587992295,3.18,196.03,195.94,1.4836]
[1735587992693,3.18,196.03,195.96,2.5545]
[1735587992903,3.18,196.03,195.94,1.4836]
[1735587993296,3.18,196.03,196.0,2.554]
[1735587996197,18.19102062,196.06,196.0,2.554]
[1735587996400,3.18,196.03,195.99,2.5541]
[1735587996594,3.18,196.03,195.95,3.0091]
[1735587997697,3.18,196.03,195.98,2.5542]
[1735588001702,15.72372062,196.03,195.9,12.54372062]
[1735588002112,12.54372062,196.0,195.9,12.54372062]
[1735588002409,15.09782062,196.0,195.9,12.54372062]
[1735588003006,12.54372062,196.0,195.9,12.54372062]
[1735588003207,12.54372062,196.0,195.94,2.5547]
[1735588003409,12.54372062,196.0,195.9,12.54372062]
[1735588003704,12.54372062,196.0,195.95,2.5546]
[1735588003906,15.72372062,196.03,195.9,12.54372062]
[1735588004305,3.18,196.03,195.98,2.5543]
[1735588005313,3.18,196.03,195.93,12.54372062]
[1735588005515,3.18,196.03,196.0,2.554]
[1735588006614,3.18,196.05,196.04,2.5534]
[1735588009714,3.18,196.05,196.02,2.5537]
[1735588014219,2.5535,196.04,195.99,2.554]
[1735588015921,2.5535,196.04,195.98,2.5542]
[1735588018024,2.5536,196.03,195.97,5.5143]
[1735588018217,15.09732062,196.03,195.91,8.59931219]
[1735588018416,15.09732062,196.03,195.91,11.66671219]
[1735588019126,15.09732062,196.03,195.95,2.5546]
[1735588019127,2.5538,196.02,195.95,2.5546]
[1735588020429,12.54372062,196.03,195.93,2.5549]
[1735588020922,15.09782062,196.0,195.93,2.5549]
[1735588021127,3.18,195.99,195.93,2.5549]
[1735588022530,5.7342,195.99,195.92,2.555]
[1735588024521,3.18,195.98,195.92,2.555]
[1735588026132,3.18,195.98,195.91,4.6698]
[1735588026328,3.18,195.98,195.93,2.5549]
[1735588026832,3.18,195.98,195.91,4.6698]
[1735588027028,2.5539,196.01,195.94,2.5548]
[1735588027232,3.18,196.0,195.94,2.5548]
[1735588027732,2.5539,196.01,195.94,2.5548]
[1735588027931,3.18,196.0,195.94,2.5548]
[1735588028533,3.18,196.0,195.96,2.5544]
[1735588028733,3.18,196.0,195.91,4.6698]
[1735588028935,3.18,196.0,195.92,3.95102413]
[1735588029130,3.18,196.0,195.93,3.95102413]
[1735588029338,3.18,196.0,195.94,3.95102413]
[1735588029528,3.18,196.0,195.95,3.95102413]
[1735588029732,3.18,196.0,195.96,3.95102413]
[1735588029928,3.18,196.0,195.91,49.62282378]
[1735588030129,3.18,196.0,195.96,2.5544]
[1735588030331,3.18,196.0,195.97,3.95373991]
[1735588030535,3.18,196.0,195.95,2.5547]
[1735588030739,3.18,196.0,195.96,3.95412454]
[1735588031039,3.18,196.0,195.97,3.95412454]
[1735588031234,3.18,196.0,195.95,2.5547]
[1735588031441,3.18,196.0,195.92,2.555]
[1735588031738,2.5544,195.97,195.93,3.95400672]
[1735588031937,15.72372062,196.0,195.92,6.99691219]
[1735588032134,15.72372062,196.0,195.93,3.95678396]
[1735588032341,2.5543,195.98,195.92,6.99691219]
[1735588032536,2.5543,195.98,195.91,2.5551]
[1735588032731,2.5543,195.98,195.92,3.95746904]
[1735588032935,2.5543,195.98,195.93,3.95746904]
[1735588033139,2.5543,195.98,195.94,3.95689972]
[1735588033341,15.72372062,196.0,195.88,6.99691219]
[1735588033541,15.72372062,196.0,195.89,3.95676837]
[1735588033743,2.5546,195.96,195.9,3.95676837]
[1735588033940,3.18,195.95,195.91,3.95676837]
[1735588034240,3.18,195.95,195.9,2.5553]
[1735588034440,3.18,195.95,195.91,3.95825976]
[1735588034640,5.7347,195.95,195.89,2.5554]
[1735588034840,5.7347,195.95,195.9,3.9586433]
[1735588035038,5.7347,195.95,195.89,2.5554]
[1735588035232,5.7347,195.95,195.9,3.958702]
[1735588035437,3.18,195.95,195.89,2.5554]
[1735588035637,3.18,195.95,195.9,3.95772255]
[1735588035844,3.18,195.95,195.91,3.95772255]
[1735588036042,3.18,195.95,195.9,2.5553]
[1735588036242,3.18,195.95,195.91,4.04140183]
[1735588036442,3.18,195.95,195.9,2.5553]
[1735588036644,3.18,195.95,195.91,4.0405402]
[1735588036946,3.18,195.95,195.9,2.5553]
[1735588037238,3.18,195.95,195.85,4.5603]
[1735588037445,3.18,195.95,195.86,10.50787556]
[1735588037645,5.7347,195.95,195.89,2.5554]
[1735588037845,3.18,195.95,195.85,4.5603]
[1735588038047,3.18,195.95,195.86,10.50339662]
[1735588038243,3.18,195.95,195.87,10.50339662]
[1735588038442,3.18,195.95,195.88,10.50339662]
[1735588038746,3.18,195.95,195.89,4.03739748]
[1735588038945,3.18,195.95,195.85,4.5603]
[1735588039339,3.18,195.95,195.92,2.555]
[1735588039538,3.18,195.95,195.87,12.54372062]
[1735588039743,3.18,195.95,195.88,10.49159258]
[1735588039947,3.18,195.95,195.92,2.5549]
[1735588040142,7.2124,195.99,195.92,2.5549]
[1735588040447,3.18,195.98,195.93,4.03568778]
[1735588040644,3.18,195.98,195.92,2.5549]
[1735588040844,3.18,195.98,195.93,6.59034737]
[1735588041044,3.18,195.98,195.93,2.5549]
[1735588041547,5.7343,195.98,195.93,2.5549]
[1735588042050,3.18,195.98,195.87,12.54372062]
[1735588042246,7.2123,195.99,195.94,2.5548]
[1735588042453,3.18,195.97,195.87,12.54372062]
[1735588042651,3.18,195.97,195.88,10.49608282]
[1735588042849,2.5545,195.96,195.91,2.5551]
[1735588043243,2.5545,195.96,195.87,12.54372062]
[1735588043451,5.7344,195.97,195.92,2.555]
[1735588046354,13.74660183,195.97,195.92,2.555]
[1735588046855,13.74670183,195.97,195.92,2.5551]
[1735588047553,3.18,195.97,195.93,2.5549]
[1735588047754,35.74830864,196.1,195.92,8.01220183]
[1735588047755,8.01220183,196.0,195.92,8.01220183]
[1735588047967,8.01220183,196.03,195.94,8.01220183]
[1735588048257,3.18,196.02,195.96,8.01220183]
[1735588049157,3.18,196.02,195.98,2.5543]
[1735588050455,8.01220183,195.99,195.92,8.01220183]
[1735588050657,8.01220183,195.97,195.9,15.00911402]
[1735588050858,3.18,195.96,195.92,2.555]
[1735588051053,3.18,195.96,195.93,4.03643495]
[1735588051257,3.18,195.96,195.9,15.00911402]
[1735588051454,3.18,195.96,195.94,2.5548]
[1735588052055,3.18,195.96,195.93,2.5549]
[1735588053254,2.5542,195.99,195.93,2.5549]
[1735588053460,3.18,195.98,195.95,2.5546]
[1735588053661,2.5539,196.02,195.95,2.5546]
[1735588053856,3.18,196.01,195.95,2.5546]
[1735588054258,3.18,196.01,195.96,4.03853621]
[1735588054559,3.18,196.01,195.95,2.5546]
[1735588054758,3.18,196.01,195.96,6.59356479]
[1735588054954,3.18,196.01,195.96,2.5545]
[1735588055154,5.7339,196.01,195.96,2.5545]
[1735588055352,5.7339,196.01,195.98,2.5542]
[1735588055353,3.18,196.01,195.98,2.5542]
[1735588055657,3.18,196.01,195.91,12.51807682]
[1735588055858,3.18,196.01,195.92,10.50071773]
[1735588056054,3.18,196.01,195.97,2.5544]
[1735588056259,2.5537,196.03,195.98,4.03873759]
[1735588056460,3.16,196.02,195.92,44.95302378]
[1735588056658,3.16,196.02,195.93,10.50054806]
[1735588056850,3.16,196.02,195.98,2.5542]
[1735588057051,12.51807682,196.04,195.92,44.95302378]
[1735588057052,15.07167682,196.04,195.99,4.03867222]
[1735588057256,4.4928,196.1,195.93,4.7391]
[1735588057557,12.51807682,196.09,195.94,23.01821101]
[1735588057750,3.16,196.08,195.95,10.50013419]
[1735588057956,3.16,196.08,196.01,2.5538]
[1735588058358,3.16,196.08,195.94,12.51807682]
[1735588058557,3.16,196.08,196.02,2.5537]
[1735588059052,2.5531,196.07,196.02,2.5537]
[1735588059450,2.5531,196.07,195.94,12.51807682]
[1735588059659,3.16,196.08,195.94,12.51807682]
[1735588059660,2.5532,196.06,196.03,2.5536]
[1735588059853,15.67807682,196.08,195.96,6.45688281]
[1735588060053,15.67807682,196.08,195.97,10.49282572]
[1735588060258,15.67807682,196.08,195.98,10.49282572]
[1735588060458,12.51807682,196.05,195.99,4.0357022]
[1735588060661,12.51807682,196.02,195.95,7.00725104]
[1735588060866,3.16,196.01,195.96,10.4950162]
[1735588061164,3.16,196.01,195.97,10.4950162]
[1735588061365,3.16,196.01,195.98,4.03654469]
[1735588061565,5.714,196.01,195.93,3.1539]
[1735588061760,3.16,196.01,195.94,10.49411228]
[1735588061956,3.16,196.01,195.95,10.49411228]
[1735588062165,3.16,196.01,195.96,10.49411228]
[1735588062365,3.16,196.01,195.97,10.49411228]
[1735588062561,3.16,196.01,195.98,4.03619703]
[1735588062865,3.16,196.01,195.99,2.554]
[1735588063565,3.16,196.01,196.0,2.554]
[1735588068262,3.16,196.04,196.0,3.99254005]
[1735588068464,3.16,196.04,196.03,2.5536]
[1735588070971,3.16,196.07,196.03,2.5536]
[1735588071166,3.16,196.07,195.97,12.51807682]
[1735588071471,2.5533,196.06,195.98,3.98793936]
[1735588071666,15.67807682,196.07,195.99,3.98793936]
[1735588071871,2.5535,196.05,195.94,12.51807682]
[1735588072372,8.00675207,196.04,195.96,8.00675207]
[1735588072566,8.00675207,196.04,195.99,2.554]
[1735588074172,8.00675207,196.06,196.03,2.5536]
[1735588074376,3.16,196.07,196.03,2.5536]
[1735588074774,5.7131,196.07,195.99,2.5541]
[1735588075072,5.7131,196.07,195.95,12.50803081]
[1735588075273,5.7131,196.07,195.96,3.98176788]
[1735588075472,3.16,196.07,196.01,2.5538]
[1735588075672,2.5532,196.06,196.01,2.5538]
[1735588076070,2.5535,196.05,195.99,2.5541]
[1735588078574,3.16,196.07,195.95,12.50803081]
[1735588078774,5.7131,196.07,196.01,2.5538]
[1735588081170,5.7131,196.07,196.02,2.5537]
[1735588081372,5.713,196.07,195.96,1.5589]
[1735588081669,5.713,196.07,195.97,3.98659933]
[1735588081874,5.713,196.07,195.98,3.98659933]
[1735588082074,5.713,196.07,195.99,3.98659933]
[1735588082268,5.713,196.07,195.96,1.5589]
[1735588082469,5.713,196.07,196.01,2.5537]
[1735588082670,5.713,196.07,195.96,1.5589]
[1735588082870,2.553,196.07,195.97,3.98890171]
[1735588083068,3.16,196.06,196.01,2.5537]
[1735588084077,15.66803081,196.06,195.99,2.554]
[1735588084274,15.66803081,196.06,195.96,8.56615104]
[1735588084478,12.50803081,196.03,195.97,3.99224405]
[1735588084678,12.50803081,196.03,195.96,9.56165104]
[1735588084881,12.50803081,196.03,195.97,3.99329937]
[1735588085078,12.50803081,196.03,195.96,9.56165104]
[1735588085274,2.5537,196.02,195.96,9.56165104]
[1735588085474,3.16,196.01,195.96,2.5544]
[1735588085674,12.50803081,196.03,195.94,2.5546]
[1735588085875,12.50803081,196.0,195.95,3.9955054]
[1735588086076,3.16,195.99,195.93,7.00725104]
[1735588086573,3.16,195.99,195.94,3.99631924]
[1735588086888,3.16,195.99,195.94,2.5546]
[1735588087779,3.16,195.99,195.91,1.6011]
[1735588087982,2.5542,195.98,195.92,6.55095988]
[1735588088178,2.5542,195.98,195.92,2.5549]
[1735588088579,2.5542,195.98,195.93,3.99619691]
[1735588088783,3.16,195.99,195.93,2.5547]
[1735588088984,3.16,195.99,195.94,3.99524558]
[1735588089282,3.16,195.99,195.95,3.99423317]
[1735588089476,3.16,195.99,195.96,2.5543]
[1735588089877,3.16,195.99,195.96,2.5544]
[1735588091280,3.16,195.99,195.9,7.00725104]
[1735588091480,12.50803081,195.98,195.91,3.99591108]
[1735588091780,12.50803081,195.98,195.92,3.99591108]
[1735588091979,12.50803081,195.98,195.9,7.00725104]
[1735588092180,3.16,195.99,195.91,3.99693282]
[1735588092386,17.13363081,196.01,195.92,3.99693282]
[1735588092685,3.16,196.0,195.95,2.5544]
[1735588093286,19.68743081,196.01,195.95,2.5544]
[1735588093480,3.16,196.0,195.95,2.5544]
[1735588094184,3.16,196.0,195.89,28.02900418]
[1735588094382,2.5541,195.99,195.9,3.99349791]
[1735588094583,2.5541,195.99,195.91,3.99349791]
[1735588094784,2.5541,195.99,195.92,3.99349791]
[1735588094986,2.5541,195.99,195.93,3.99349791]
[1735588095184,2.5541,195.99,195.94,3.99349791]
[1735588095385,2.5541,195.99,195.89,7.00725104]
[1735588095581,2.5541,195.99,195.9,3.99325081]
[1735588095789,2.5541,195.99,195.91,3.99325081]
[1735588095987,2.5541,195.99,195.92,3.99325081]
[1735588096181,8.01147079,195.98,195.93,3.99325081]
[1735588096387,8.01147079,195.98,195.94,3.99325081]
[1735588096589,10.56577079,195.98,195.89,15.01872183]
[1735588096792,8.01147079,195.98,195.92,2.5549]
[1735588096989,8.01147079,195.98,195.93,3.99657048]
[1735588097188,8.01147079,195.98,195.92,2.5549]
[1735588097390,8.01147079,195.98,195.93,3.99725204]
[1735588097683,8.01147079,195.96,195.89,8.01147079]
[1735588097889,3.16,195.95,195.9,3.99814952]
[1735588098084,3.16,195.95,195.92,2.5549]
[1735588099281,3.16,195.95,195.93,6.55287448]
[1735588099488,3.16,195.95,195.93,2.5548]
[1735588099889,3.16,195.95,195.91,8.01147079]
[1735588100085,3.16,195.95,195.94,2.5547]
[1735588100285,8.01147079,195.98,195.94,3.9965509]
[1735588100487,8.01147079,195.98,195.91,8.01147079]
[1735588100488,3.16,195.97,195.91,8.01147079]
[1735588100685,3.16,195.97,195.92,3.99706758]
[1735588100885,3.16,195.97,195.93,3.99706758]
[1735588101085,3.16,195.97,195.91,8.01147079]
[1735588101286,3.16,195.97,195.92,3.99747615]
[1735588101488,3.16,195.97,195.93,6.55227615]
[1735588101688,3.16,195.97,195.93,2.5548]
[1735588102085,8.01147079,195.94,195.87,15.01872183]
[1735588102290,8.01147079,195.94,195.88,3.99817991]
[1735588102490,8.01147079,195.96,195.91,2.555]
[1735588102886,8.01147079,195.96,195.89,8.01147079]
[1735588103093,5.7143,195.97,195.92,2.5549]
[1735588103891,3.16,195.97,195.92,2.5549]
[1735588104091,3.16,195.97,195.93,2.5548]
[1735588104486,3.16,195.97,195.91,8.01147079]
[1735588104692,3.16,195.97,195.95,2.5545]
[1735588104999,3.16,195.97,195.93,8.01147079]
[1735588105291,3.16,195.97,195.95,8.01147079]
[1735588105493,3.16,195.97,195.96,3.99700504]
[1735588106388,3.16,195.97,195.96,6.55140504]
[1735588107791,3.16,195.97,195.96,2.5544]
[1735588108094,3.16,195.97,195.96,6.55130695]
[1735588109298,3.16,195.99,195.96,6.55130695]
[1735588109595,3.16,195.99,195.97,3.99802945]
[1735588109793,3.16,195.99,195.96,2.5544]
[1735588109995,3.16,195.99,195.97,3.9979556]
[1735588110195,3.16,195.99,195.96,2.5544]
[1735588110400,3.16,195.99,195.97,3.99796406]
[1735588110597,3.16,195.99,195.96,2.5544]
[1735588110798,9.55277079,196.01,195.96,2.5544]
[1735588110993,9.55277079,196.01,195.97,3.99833951]
[1735588110994,3.16,196.0,195.97,3.99833951]
[1735588111188,3.16,196.0,195.96,2.5544]
[1735588114407,8.01147079,195.98,195.9,28.02900418]
[1735588114704,8.01147079,195.94,195.9,28.02900418]
[1735588114892,3.16,195.93,195.9,28.02900418]
[1735588115291,3.16,195.93,195.89,2.5553]
[1735588115695,8.01147079,195.95,195.91,2.555]
[1735588115896,1.5413,196.01,195.93,8.01147079]
[1735588116101,4.7013,196.01,195.95,8.01147079]
[1735588116296,4.7013,196.01,195.96,3.99847426]
[1735588116607,4.7013,196.01,195.96,2.5543]
[1735588116897,3.16,196.01,195.97,3.99608439]
[1735588117102,3.16,196.01,195.96,2.5543]
[1735588117303,3.16,196.01,195.97,3.99637492]
[1735588117501,3.16,196.0,195.96,2.5543]
[1735588117698,3.16,196.0,195.97,3.99681359]
[1735588117998,3.16,196.0,195.96,2.5543]
[1735588118198,3.16,196.0,195.97,3.99694273]
[1735588118401,3.16,196.0,195.96,2.5543]
[1735588118600,3.16,196.0,195.97,3.99666795]
[1735588118792,3.16,196.0,195.96,2.5543]
[1735588118993,3.16,196.0,195.97,3.99711598]
[1735588119199,3.16,196.0,195.96,2.5543]
[1735588119400,3.16,196.0,195.97,3.99743144]
[1735588119699,3.16,196.0,195.96,2.5543]
[1735588119903,3.16,196.0,195.97,3.99875756]
[1735588120104,3.16,196.01,195.96,2.5543]
[1735588120303,3.16,196.01,195.97,3.99902344]
[1735588120502,3.16,196.01,195.96,2.5543]
[1735588120702,3.16,196.01,195.97,3.99949716]
[1735588120999,3.16,196.01,195.96,2.5543]
[1735588121204,3.16,196.01,195.97,4.0003533]
[1735588121502,3.16,196.01,195.96,2.5543]
[1735588121703,3.16,196.01,195.97,4.00159642]
[1735588122001,3.16,196.01,195.96,2.5543]
[1735588122197,3.16,196.01,195.97,4.00146911]
[1735588122402,3.16,196.01,195.97,2.5542]
[1735588122604,3.16,196.03,195.98,4.00164727]
[1735588122802,3.16,196.03,195.97,8.01147079]
[1735588123004,3.16,196.03,195.98,4.00126117]
[1735588123199,3.16,196.03,195.99,4.00063738]
[1735588123399,3.16,196.03,195.97,8.01147079]
[1735588123600,3.16,196.03,195.98,4.00025194]
[1735588123799,3.16,196.03,196.0,2.5539]
[1735588124095,10.56487079,196.05,195.93,7.00725104]
[1735588124096,3.16,196.08,196.01,12.01112276]
[1735588124306,1.5474,196.14,196.03,8.01147079]
[1735588124597,8.01147079,196.11,196.04,3.99965197]
[1735588124793,8.01147079,196.11,196.03,8.01147079]
[1735588124794,8.01147079,196.11,196.06,2.553]
[1735588124995,3.16,196.1,196.06,2.553]
[1735588125502,10.56397079,196.11,196.06,2.553]
[1735588125804,3.16,196.1,196.06,2.553]
[1735588126603,11.17147079,196.11,196.03,8.01147079]
[1735588126802,11.17147079,196.11,196.04,3.99251412]
[1735588127002,11.17147079,196.11,196.03,8.01147079]
[1735588127201,11.17147079,196.11,196.04,3.99317544]
[1735588127397,11.17147079,196.11,196.03,8.01147079]
[1735588127703,11.17147079,196.11,196.04,3.99342603]
[1735588127905,11.17147079,196.11,196.03,8.01147079]
[1735588128102,11.17147079,196.11,196.04,3.99252407]
[1735588128303,11.17147079,196.11,196.03,8.01147079]
[1735588128504,11.17147079,196.11,196.06,2.553]
[1735588128505,13.72397079,196.11,196.06,2.553]
[1735588128710,3.16,196.1,196.06,2.553]
[1735588129100,8.01147079,196.1,196.06,2.553]
[1735588129405,11.17147079,196.1,196.06,2.553]
[1735588131104,10.56447079,196.08,196.02,2.5536]
[1735588131304,8.01147079,196.06,196.0,3.1119]
[1735588132410,8.01147079,196.04,195.97,8.01147079]
[1735588132611,8.01147079,196.04,195.98,3.99067005]
[1735588132813,8.01147079,196.04,196.0,2.5539]
[1735588134108,3.16,196.05,196.01,2.5537]
[1735588136708,5.7133,196.05,195.99,2.5539]
[1735588137010,3.16,196.05,195.97,8.01147079]
[1735588137207,3.16,196.05,195.98,3.99013936]
[1735588137407,3.16,196.05,195.97,8.01147079]
[1735588137704,3.16,196.05,195.98,3.99048653]
[1735588137903,3.16,196.05,195.97,8.01147079]
[1735588138108,3.16,196.05,196.0,2.5539]
[1735588138302,3.16,196.05,195.97,8.01147079]
[1735588138303,8.01147079,196.02,195.97,8.01147079]
[1735588138508,8.01147079,196.02,195.95,8.01147079]
[1735588138708,8.01147079,196.02,195.97,2.5542]
[1735588140215,10.56517079,196.02,195.97,2.5542]
[1735588140808,8.01147079,196.02,195.96,2.5544]
[1735588141105,8.01147079,196.02,195.95,8.01147079]
[1735588141309,8.01147079,196.0,195.93,8.01147079]
[1735588141510,3.16,195.99,195.93,8.01147079]
[1735588142208,3.16,195.99,195.9,1.5388]
[1735588142209,8.01147079,195.98,195.89,3.097]
[1735588142413,8.01147079,195.98,195.91,8.01147079]
[1735588142815,8.01147079,195.98,195.92,3.99352166]
[1735588143115,8.01147079,195.98,195.91,8.01147079]
[1735588143315,8.01147079,195.98,195.92,3.99329232]
[1735588143516,8.01147079,195.98,195.91,8.01147079]
[1735588143517,8.01147079,195.98,195.93,2.5547]
[1735588143719,8.01147079,195.98,195.91,8.01147079]
[1735588144015,8.01147079,195.98,195.93,2.5548]
[1735588144213,8.01147079,195.98,195.91,8.01147079]
[1735588144718,10.56567079,195.98,195.92,2.5549]
[1735588145313,8.01147079,195.98,195.93,2.5548]
[1735588146218,10.56567079,195.98,195.92,2.5549]
[1735588147421,8.01147079,195.98,195.93,2.5548]
[1735588149612,10.56567079,195.98,195.93,2.5548]
[1735588152812,8.01147079,195.98,195.89,3.097]
[1735588153016,2.5545,195.96,195.9,12.00742484]
[1735588153218,2.5545,195.96,195.9,8.01147079]
[1735588154122,2.5545,195.96,195.92,2.5549]
[1735588155819,8.01147079,195.98,195.92,2.5549]
[1735588156026,2.5544,195.97,195.92,2.5549]
[1735588156525,2.5544,195.97,195.93,2.5548]
[1735588159826,8.01147079,195.98,195.92,8.01147079]
[1735588160425,8.01147079,195.98,195.9,8.01147079]
[1735588160722,10.56567079,195.98,195.9,8.01147079]
[1735588161331,10.56567079,195.98,195.94,2.5546]
[1735588162130,10.56567079,195.98,195.95,2.5545]
[1735588163731,10.56567079,195.98,195.86,1.4631]
[1735588163929,5.7141,195.99,195.91,8.01147079]
[1735588164132,13.72557079,195.99,195.91,8.01147079]
[1735588164524,8.01147079,196.01,195.93,8.01147079]
[1735588164826,3.16,196.0,195.95,8.01147079]
[1735588165526,3.16,196.01,195.95,8.01147079]
[1735588165728,8.01147079,196.03,195.95,8.01147079]
[1735588165935,3.16,196.02,195.97,8.01147079]
[1735588167235,3.16,196.02,195.99,2.554]
[1735588167535,3.16,196.02,195.97,8.01147079]
[1735588167536,8.01147079,196.01,195.95,8.01147079]
[1735588167833,2.5539,196.0,195.96,2.5544]
[1735588168234,8.01147079,195.99,195.93,8.01147079]
[1735588169235,8.01147079,196.01,195.93,8.01147079]
[1735588169432,8.01147079,196.01,195.96,2.5544]
[1735588170135,8.01147079,196.01,195.95,8.01147079]
[1735588170636,8.01147079,196.01,195.98,2.5541]
[1735588173036,3.16,196.02,195.98,2.5541]
[1735588173226,3.16,196.02,195.99,2.554]
[1735588174129,3.16,196.02,196.0,2.5538]
[1735588174330,3.16,196.02,195.96,8.01147079]
[1735588174537,3.16,196.02,195.97,3.99584791]
[1735588174729,3.16,196.02,195.96,8.01147079]
[1735588174925,3.16,196.02,195.97,3.99776734]
[1735588175125,3.16,196.02,195.96,8.01147079]
[1735588175335,3.16,196.02,195.97,3.99812295]
[1735588175537,3.16,196.02,195.96,8.01147079]
[1735588175834,3.16,196.02,195.97,4.00036526]
[1735588176035,3.16,196.02,195.96,8.01147079]
[1735588176234,3.16,196.02,195.97,4.00058222]
[1735588176436,3.16,196.02,195.96,8.01147079]
[1735588176631,3.16,196.02,195.97,4.00156615]
[1735588176838,3.16,196.02,195.99,2.5539]
[1735588183841,5.7137,196.02,195.98,2.5542]
[1735588184342,5.7137,196.02,195.97,2.5543]
[1735588184742,10.56557079,195.99,195.91,48.02498852]
[1735588184937,8.01147079,195.97,195.92,4.00942196]
[1735588185138,3.16,195.96,195.93,4.00942196]
[1735588185335,3.16,195.96,195.94,4.00942196]
[1735588185643,3.16,195.96,195.91,5.553]
[1735588185846,3.16,195.96,195.92,4.01090828]
[1735588186036,3.16,195.96,195.93,4.01090828]
[1735588186238,8.01147079,195.95,195.89,45.02698852]
[1735588186437,8.01147079,195.95,195.9,4.01045031]
[1735588186637,8.01147079,195.95,195.91,4.01045031]
[1735588186841,8.01147079,195.95,195.92,4.01045031]
[1735588187138,8.01147079,195.95,195.9,2.5552]
[1735588187345,8.01147079,195.93,195.91,4.01099534]
[1735588187642,8.01147079,195.93,195.87,46.56808852]
[1735588187842,8.01147079,195.93,195.89,2.5554]
[1735588188045,8.01147079,195.93,195.9,4.01186845]
[1735588188242,8.01147079,195.93,195.89,2.5554]
[1735588188441,8.01147079,195.93,195.9,4.01103113]
[1735588188646,8.01147079,195.93,195.89,2.5554]
[1735588188833,10.56637079,195.93,195.9,4.01097799]
[1735588189035,8.01147079,195.91,195.84,45.02698852]
[1735588189235,8.01147079,195.89,195.85,4.01350992]
[1735588189440,8.01147079,195.87,195.84,45.02698852]
[1735588189746,8.01147079,195.85,195.84,45.02698852]
[1735588189939,8.01147079,195.87,195.84,49.04118665]
[1735588190136,3.16,195.85,195.82,15.01872183]
[1735588190343,3.16,195.86,195.83,4.01132813]
[1735588190536,3.16,195.86,195.84,4.01132813]
[1735588190736,3.16,195.86,195.83,2.5561]
[1735588190944,3.16,195.86,195.84,4.01098681]
[1735588191140,3.16,195.86,195.85,4.01098681]
[1735588191851,3.16,195.86,195.85,6.56688681]
[1735588193150,3.16,195.86,195.85,2.5559]
[1735588193447,3.16,195.86,195.84,2.556]
[1735588193649,3.16,195.86,195.82,8.01147079]
[1735588193945,3.16,195.86,195.83,4.00601295]
[1735588194143,3.16,195.86,195.85,2.5559]